bitfinex/quotes_BTCUSD_20230101
["timestamp","ask_amount","ask_price","bid_price","bid_amount"]
[1672554953864,0.8223049,16560.0,16559.0,0.22562307]
[1672554954348,0.8223049,16560.0,16559.0,0.92562307]
[1672554957963,0.5223049,16560.0,16559.0,0.92562307]
[1672554958668,0.8223049,16560.0,16559.0,0.92562307]
[1672554959948,0.82219292,16560.0,16559.0,0.92562307]
[1672554960433,0.52219292,16560.0,16559.0,0.22562307]
[1672554960681,0.82219292,16560.0,16559.0,0.22562307]
[1672554961517,0.82219292,16560.0,16559.0,0.92562307]
[1672554961740,0.40887292,16560.0,16559.0,0.92562307]
[1672554967431,0.40887292,16560.0,16559.0,0.22562307]
[1672554968454,0.40887292,16560.0,16559.0,0.92562307]
[1672554974551,0.40887292,16560.0,16559.0,0.22562307]
[1672554975292,1.30189688,16560.0,16559.0,0.92562307]
[1672554975642,0.40887292,16560.0,16559.0,0.92562307]
[1672554977245,1.30189688,16560.0,16559.0,0.92562307]
[1672554981284,1.30189688,16560.0,16559.0,0.22562307]
[1672554981540,1.30189688,16560.0,16559.0,0.22554847]
[1672554982590,1.30189688,16560.0,16559.0,0.92554847]
[1672554988399,1.29226003,16560.0,16559.0,0.22554847]
[1672554988654,1.26519959,16560.0,16559.0,0.22554847]
[1672554989386,1.26519959,16560.0,16559.0,0.92554847]
[1672554994805,1.26519959,16560.0,16559.0,0.92562621]
[1672554995043,1.26519959,16560.0,16559.0,0.92554847]
[1672554995299,1.26519959,16560.0,16559.0,0.22554847]
[1672554995635,1.26519959,16560.0,16559.0,0.22562621]
[1672554995902,1.26519959,16560.0,16559.0,0.22554847]
[1672554996378,1.26519959,16560.0,16559.0,0.92554847]
[1672554997881,1.26519959,16560.0,16559.0,0.92562621]
[1672554998121,1.26519959,16560.0,16559.0,0.92554847]
[1672555001225,1.26519959,16560.0,16559.0,0.92562621]
[1672555001720,1.26519959,16560.0,16559.0,0.92554847]
[1672555002966,1.26519959,16560.0,16559.0,0.22554847]
[1672555003473,1.26519959,16560.0,16559.0,0.92554847]
[1672555003700,1.26519959,16560.0,16559.0,0.92562621]
[1672555004372,1.26519959,16560.0,16559.0,0.92554847]
[1672555004923,1.26519959,16560.0,16559.0,0.92562621]
[1672555005407,1.26519959,16560.0,16559.0,0.92554847]
[1672555006906,1.26519959,16560.0,16559.0,0.92562621]
[1672555007125,0.37217563,16560.0,16559.0,0.92562621]
[1672555007878,0.89302396,16561.0,16559.0,0.92562621]
[1672555008120,1.19302396,16561.0,16559.0,0.92562621]
[1672555009096,1.19302396,16561.0,16559.0,0.80062621]
[1672555009346,1.19502396,16561.0,16559.0,0.92562621]
[1672555010343,1.66758565,16561.0,16559.0,0.92562621]
[1672555010584,1.66758565,16561.0,16559.0,1.48518025]
[1672555010833,1.66758565,16561.0,16559.0,1.48510251]
[1672555011826,1.66758565,16561.0,16559.0,1.48500493]
[1672555014841,1.36758565,16561.0,16559.0,1.48500493]
[1672555015121,1.66758565,16561.0,16559.0,1.48515283]
[1672555017050,1.36758565,16561.0,16559.0,1.48515283]
[1672555017288,1.66758565,16561.0,16559.0,1.48500493]
[1672555018733,1.36758565,16561.0,16559.0,1.48515283]
[1672555019465,1.66758565,16561.0,16559.0,1.48515283]
[1672555019713,1.66758565,16561.0,16559.0,1.48500493]
[1672555020719,1.66758565,16561.0,16559.0,0.78500493]
[1672555020971,1.66758565,16561.0,16559.0,0.78515283]
[1672555021714,1.66758565,16561.0,16559.0,1.48515283]
[1672555021956,1.36758565,16561.0,16559.0,1.48515283]
[1672555022460,0.47456169,16561.0,16559.0,1.48515283]
[1672555024175,0.47456169,16561.0,16559.0,1.48500493]
[1672555025912,1.66758565,16561.0,16559.0,0.92545089]
[1672555029175,1.66628163,16561.0,16559.0,0.92545089]
[1672555029857,0.45246132,16560.0,16559.0,0.92545089]
[1672555030599,0.45246132,16560.0,16559.0,0.80045089]
[1672555031114,1.34548528,16560.0,16559.0,0.80045089]
[1672555031373,1.34748528,16560.0,16559.0,0.92645089]
[1672555033388,1.34748528,16560.0,16559.0,0.92659879]
[1672555033642,1.34748528,16560.0,16559.0,0.92645089]
[1672555034884,1.34748528,16560.0,16559.0,0.92772489]
[1672555035132,1.34748528,16560.0,16559.0,0.92645089]
[1672555035881,0.45446132,16560.0,16559.0,0.92645089]
[1672555042779,0.45446132,16560.0,16559.0,0.22645089]
[1672555043032,0.45446132,16560.0,16559.0,0.92645089]
[1672555043766,0.45437747,16560.0,16559.0,0.92645089]
[1672555049243,0.45437747,16560.0,16559.0,0.22645089]
[1672555050152,0.45437747,16560.0,16559.0,0.92645089]
[1672555056214,0.45437747,16560.0,16559.0,0.22645089]
[1672555056469,0.45437747,16560.0,16559.0,0.2276714]
[1672555056708,0.45437747,16560.0,16559.0,0.22645089]
[1672555057190,0.45437747,16560.0,16559.0,0.92645089]
[1672555063124,0.45437747,16560.0,16559.0,0.22645089]
[1672555064125,0.45437747,16560.0,16559.0,0.92645089]
[1672555064633,1.34740143,16560.0,16559.0,0.92645089]
[1672555068395,1.34740143,16560.0,16559.0,0.92633476]
[1672555071869,1.34740143,16560.0,16559.0,0.22633476]
[1672555072868,1.34740143,16560.0,16559.0,0.92633476]
[1672555074387,1.34740143,16560.0,16559.0,0.92639577]
[1672555074717,1.34740143,16560.0,16559.0,0.92633476]
[1672555075148,0.45437747,16560.0,16559.0,0.92633476]
[1672555075422,1.34740143,16560.0,16559.0,0.92633476]
[1672555078866,1.34740143,16560.0,16559.0,0.22639577]
[1672555079122,1.34740143,16560.0,16559.0,0.22633476]
[1672555079625,1.34740143,16560.0,16559.0,0.92633476]
[1672555079883,0.45437747,16560.0,16559.0,0.92633476]
[1672555080634,1.34740143,16560.0,16559.0,0.92633476]
[1672555080892,0.45437747,16560.0,16559.0,0.92633476]
[1672555081365,0.45437747,16560.0,16559.0,0.92639577]
[1672555081612,0.45437747,16560.0,16559.0,0.92633476]
[1672555082834,0.002,16560.0,16559.0,0.92633476]
[1672555083590,0.002,16560.0,16559.0,0.92639577]
[1672555084847,0.002,16560.0,16559.0,0.92633476]
[1672555085806,0.002,16560.0,16559.0,0.92639577]
[1672555092672,0.002,16560.0,16559.0,0.92629557]
[1672555099569,0.002,16560.0,16559.0,0.22629557]
[1672555100079,0.002,16560.0,16559.0,0.92629557]
[1672555103881,0.002,16560.0,16559.0,0.92623456]
[1672555104148,0.002,16560.0,16559.0,0.92637813]
[1672555106121,0.002,16560.0,16559.0,0.22637813]
[1672555107106,0.002,16560.0,16559.0,0.92637813]
[1672555113441,0.002,16560.0,16559.0,0.92626762]
[1672555116750,0.002,16560.0,16559.0,0.22626762]
[1672555117745,0.002,16560.0,16559.0,0.92612405]
[1672555118007,0.002,16560.0,16559.0,0.92618527]
[1672555122283,0.002,16560.0,16559.0,0.9262635]
[1672555122527,0.002,16560.0,16559.0,0.83054456]
[1672555122772,0.002,16560.0,16559.0,0.9249151]
[1672555123642,0.002,16560.0,16559.0,0.2249151]
[1672555124610,0.002,16560.0,16559.0,0.9249151]
[1672555130699,0.002,16560.0,16559.0,0.2249151]
[1672555131588,0.002,16560.0,16559.0,0.9249151]
[1672555136431,0.002,16560.0,16559.0,0.92484006]
[1672555137660,0.002,16560.0,16559.0,0.22484006]
[1672555138625,0.002,16560.0,16559.0,0.92484006]
[1672555142071,0.002,16560.0,16559.0,1.54451106]
[1672555144189,0.002,16560.0,16559.0,0.92484006]
[1672555144688,0.002,16560.0,16559.0,0.22484006]
[1672555145707,0.002,16560.0,16559.0,0.92484006]
[1672555151607,0.002,16560.0,16559.0,0.22484006]
[1672555152617,0.002,16560.0,16559.0,0.92484006]
[1672555158672,0.002,16560.0,16559.0,0.22484006]
[1672555158917,0.002,16560.0,16559.0,0.92484006]
[1672555159159,0.002,16560.0,16559.0,1.54444674]
[1672555161069,0.002,16560.0,16559.0,0.92477574]
[1672555162588,0.002,16560.0,16559.0,0.92463629]
[1672555162846,0.002,16560.0,16559.0,0.92470142]
[1672555163371,0.002,16560.0,16559.0,0.92463629]
[1672555164097,0.002,16560.0,16559.0,0.92470142]
[1672555164343,0.002,16560.0,16559.0,0.92463629]
[1672555165177,0.002,16560.0,16559.0,0.92470142]
[1672555166596,0.002,16560.0,16559.0,0.92463629]
[1672555167592,0.002,16560.0,16559.0,0.92050628]
[1672555168990,0.002,16560.0,16559.0,0.92037054]
[1672555169988,0.002,16560.0,16559.0,0.92050628]
[1672555170715,0.002,16560.0,16559.0,0.22050628]
[1672555171779,0.002,16560.0,16559.0,0.92050628]
[1672555175957,0.002,16560.0,16559.0,0.92037054]
[1672555176165,0.002,16560.0,16559.0,0.9204392]
[1672555183060,0.002,16560.0,16559.0,0.2204392]
[1672555184032,0.002,16560.0,16559.0,0.22029984]
[1672555184250,0.002,16560.0,16559.0,0.92029984]
[1672555184714,0.002,16560.0,16559.0,1.53997084]
[1672555185209,0.002,16560.0,16559.0,1.54010322]
[1672555188168,0.002,16560.0,16559.0,1.54004269]
[1672555188660,0.002,16560.0,16559.0,1.53997084]
[1672555189240,0.002,16560.0,16559.0,0.92029984]
[1672555189424,0.002,16560.0,16559.0,0.92037169]
[1672555190127,0.002,16560.0,16559.0,0.22029984]
[1672555190353,0.002,16560.0,16559.0,0.22037169]
[1672555190583,0.002,16560.0,16559.0,0.22029984]
[1672555191313,0.002,16560.0,16559.0,0.92037169]
[1672555192094,0.40751194,16560.0,16559.0,0.92037169]
[1672555192364,0.40751194,16560.0,16559.0,0.92029984]
[1672555192874,0.40751194,16560.0,16559.0,0.92042919]
[1672555193172,0.40751194,16560.0,16559.0,0.92029984]
[1672555194166,0.40751194,16560.0,16559.0,0.92042919]
[1672555194414,0.40751194,16560.0,16559.0,0.92029984]
[1672555197365,0.002,16560.0,16559.0,0.92029984]
[1672555200735,0.002,16560.0,16559.0,0.92036788]
[1672555200972,0.002,16560.0,16559.0,0.92029984]
[1672555201667,0.002,16560.0,16559.0,0.92036788]
[1672555203374,0.002,16560.0,16559.0,0.22036788]
[1672555203633,0.6774106,16561.0,16559.0,0.09443858]
[1672555203868,0.3774106,16561.0,16559.0,0.23443858]
[1672555204371,0.6774106,16561.0,16559.0,0.23437054]
[1672555204748,1.27043456,16561.0,16559.0,0.79437054]
[1672555204999,1.27043456,16561.0,16559.0,0.93425421]
[1672555205247,0.3774106,16561.0,16559.0,0.79425421]
[1672555205500,0.3774106,16561.0,16559.0,0.93525421]
[1672555205755,0.3774106,16561.0,16559.0,1.38753456]
[1672555206961,1.27043456,16561.0,16559.0,1.38753456]
[1672555207192,0.6774106,16561.0,16559.0,1.38753456]
[1672555207442,0.3774106,16561.0,16559.0,1.38753456]
[1672555207938,0.3774106,16561.0,16559.0,1.3876026]
[1672555209446,0.3774106,16561.0,16559.0,1.38753456]
[1672555210402,0.3774106,16561.0,16559.0,0.68753456]
[1672555211380,0.3774106,16561.0,16559.0,1.38753456]
[1672555212856,0.3774106,16561.0,16559.0,1.3876026]
[1672555213365,0.3774106,16561.0,16559.0,1.38753456]
[1672555213860,1.27043456,16561.0,16559.0,1.38753456]
[1672555214106,1.57043456,16561.0,16559.0,1.38753456]
[1672555215090,1.27043456,16561.0,16559.0,1.38753456]
[1672555215340,0.3774106,16561.0,16559.0,1.38753456]
[1672555215583,1.27043456,16561.0,16559.0,1.38753456]
[1672555216538,0.3774106,16561.0,16559.0,1.38753456]
[1672555217579,0.3774106,16561.0,16559.0,0.6876026]
[1672555218083,0.37731362,16561.0,16559.0,0.68753456]
[1672555218595,0.37731362,16561.0,16559.0,1.38753456]
[1672555219078,1.27033758,16561.0,16559.0,1.38753456]
[1672555222287,0.37731362,16561.0,16559.0,1.38753456]
[1672555223064,0.36977229,16560.0,16559.0,1.38753456]
[1672555223822,0.36977229,16560.0,16559.0,1.24653456]
[1672555224053,0.36977229,16560.0,16559.0,1.38653456]
[1672555226320,0.36977229,16560.0,16559.0,1.3866026]
[1672555226561,0.36977229,16560.0,16559.0,1.38653456]
[1672555228042,0.89302396,16561.0,16559.0,1.38653456]
[1672555229028,1.37356063,16561.0,16559.0,1.24653456]
[1672555229276,1.37356063,16561.0,16559.0,1.38753456]
[1672555229527,1.37356063,16561.0,16559.0,1.3876026]
[1672555229747,0.48053667,16561.0,16559.0,1.3876026]
[1672555230243,1.37356063,16561.0,16559.0,1.3876026]
[1672555230503,0.48053667,16561.0,16559.0,1.3876026]
[1672555232954,0.48053667,16561.0,16559.0,1.38753456]
[1672555234165,0.48053667,16561.0,16559.0,0.68753456]
[1672555234891,0.48053667,16561.0,16559.0,1.38753456]
[1672555236518,0.48053667,16561.0,16560.0,6.803e-05]
[1672555236766,0.48053667,16561.0,16559.0,1.38753456]
[1672555237009,0.48053667,16561.0,16560.0,0.7]
[1672555237763,0.48053667,16561.0,16560.0,0.79433269]
[1672555238513,0.48053667,16561.0,16560.0,0.79440072]
[1672555238772,0.48053667,16561.0,16560.0,0.79433269]
[1672555239011,0.48053667,16561.0,16560.0,0.93533269]
[1672555239504,0.48053667,16561.0,16560.0,0.93540072]
[1672555240236,0.48053667,16561.0,16560.0,0.93533269]
[1672555241660,0.48053667,16561.0,16560.0,0.93525988]
[1672555242402,0.48053667,16561.0,16560.0,0.23533269]
[1672555243189,0.48053667,16561.0,16560.0,0.93533269]
[1672555249320,0.48053667,16561.0,16560.0,0.23540072]
[1672555250040,0.48053667,16561.0,16560.0,0.23533269]
[1672555250282,0.48053667,16561.0,16560.0,0.93533269]
[1672555254524,0.48053667,16561.0,16560.0,0.93540072]
[1672555257642,0.48053667,16561.0,16560.0,0.93533269]
[1672555262148,0.48053667,16561.0,16560.0,0.93540072]
[1672555262390,0.48053667,16561.0,16560.0,0.93533269]
[1672555263086,0.48053667,16561.0,16560.0,0.93540072]
[1672555263233,0.48053667,16561.0,16560.0,0.93523947]
[1672555267336,0.48053667,16561.0,16560.0,0.9353689]
[1672555268106,0.48053667,16561.0,16560.0,0.93523947]
[1672555268595,0.48053667,16561.0,16560.0,0.9353689]
[1672555269614,0.48053667,16561.0,16560.0,0.23523947]
[1672555271100,0.48053667,16561.0,16560.0,0.93523947]
[1672555272072,0.48053667,16561.0,16560.0,0.9353689]
[1672555272312,0.48053667,16561.0,16560.0,0.93523947]
[1672555272556,0.48053667,16561.0,16560.0,1.55491047]
[1672555273129,0.48053667,16561.0,16560.0,0.9353689]
[1672555273376,0.48053667,16561.0,16560.0,1.5550399]
[1672555275108,0.48053667,16561.0,16560.0,0.9353689]
[1672555275349,0.48053667,16561.0,16560.0,0.93523947]
[1672555275603,0.48053667,16561.0,16560.0,1.55491047]
[1672555276336,0.48053667,16561.0,16560.0,1.5550399]
[1672555276823,0.48053667,16561.0,16560.0,1.55491047]
[1672555277318,0.48053667,16561.0,16560.0,0.93523947]
[1672555278777,0.48053667,16561.0,16560.0,1.55491047]
[1672555279533,1.8691985,16562.0,16560.0,1.55491047]
[1672555279809,1.8691985,16562.0,16561.0,0.619671]
[1672555280053,1.8691985,16562.0,16561.0,1.319671]
[1672555280263,1.8691985,16562.0,16561.0,0.619671]
[1672555280508,1.8691985,16562.0,16560.0,0.23542431]
[1672555280956,2.1691985,16562.0,16561.0,0.09429946]
[1672555281213,2.1691985,16562.0,16561.0,0.23629946]
[1672555281214,1.8691985,16562.0,16561.0,0.23629946]
[1672555281455,1.8691985,16562.0,16561.0,0.79429946]
[1672555283218,1.8691985,16562.0,16561.0,0.93629946]
[1672555283483,1.8691985,16562.0,16561.0,0.93623136]
[1672555287456,1.8691985,16562.0,16561.0,0.23623136]
[1672555288440,1.8691985,16562.0,16561.0,0.93623136]
[1672555290377,2.1691985,16562.0,16561.0,0.93623136]
[1672555290629,1.8691985,16562.0,16561.0,0.93623136]
[1672555298032,1.8691985,16562.0,16561.0,0.23623136]
[1672555298911,1.8691985,16562.0,16561.0,0.93623136]
[1672555305098,0.97617454,16562.0,16561.0,0.93623136]
[1672555305353,0.97617454,16562.0,16561.0,1.47345908]
[1672555305606,0.97617454,16562.0,16561.0,2.3949134]
[1672555305859,0.97617454,16562.0,16561.0,2.0930134]
[1672555308860,0.97617454,16562.0,16561.0,2.09319823]
[1672555310877,1.58780668,16562.0,16561.0,2.09319823]
[1672555311136,0.97617454,16562.0,16561.0,2.09319823]
[1672555312553,1.58773343,16562.0,16561.0,2.09319823]
[1672555314188,1.58773343,16562.0,16561.0,1.47352723]
[1672555318540,1.58773343,16562.0,16561.0,0.77352723]
[1672555319571,1.58773343,16562.0,16561.0,1.47352723]
[1672555325830,1.58773343,16562.0,16561.0,1.47660191]
[1672555327574,1.58773343,16562.0,16561.0,1.47641708]
[1672555328545,1.58773343,16562.0,16561.0,1.4763305]
[1672555330064,1.58773343,16562.0,16561.0,1.7782305]
[1672555330320,0.97617454,16562.0,16561.0,1.7782305]
[1672555331287,0.97617454,16562.0,16561.0,1.77846534]
[1672555331792,0.97617454,16562.0,16561.0,1.47656534]
[1672555335976,0.97617454,16562.0,16561.0,0.77656534]
[1672555336236,1.58773343,16562.0,16561.0,0.7763305]
[1672555336957,1.58773343,16562.0,16561.0,1.4763305]
[1672555337665,1.58764523,16562.0,16561.0,1.4763305]
[1672555338473,1.58764523,16562.0,16561.0,1.47656534]
[1672555347476,1.58764523,16562.0,16561.0,1.4763305]
[1672555347718,1.58764523,16562.0,16561.0,1.47702203]
[1672555350757,1.58764523,16562.0,16561.0,0.77702203]
[1672555352470,1.58764523,16562.0,16561.0,1.47702203]
[1672555352721,1.58764523,16562.0,16561.0,2.09669303]
[1672555354122,1.58764523,16562.0,16561.0,1.47702203]
[1672555354872,1.58764523,16562.0,16561.0,1.47483181]
[1672555357584,1.58764523,16562.0,16561.0,1.47439795]
[1672555357818,1.58764523,16562.0,16561.0,1.47414028]
[1672555358689,0.97608634,16562.0,16561.0,1.47414028]
[1672555358966,0.97608634,16562.0,16561.0,1.47439795]
[1672555359416,0.97608634,16562.0,16561.0,1.47431837]
[1672555362563,0.97608634,16562.0,16561.0,1.47470884]
[1672555364772,0.97608634,16562.0,16561.0,0.77470884]
[1672555365245,0.97608634,16562.0,16561.0,1.47470884]
[1672555369328,0.97608634,16562.0,16561.0,1.77661884]
[1672555370545,0.97608634,16562.0,16561.0,1.47470884]
[1672555370800,1.5881965,16562.0,16561.0,1.47470884]
[1672555379934,1.5881965,16562.0,16561.0,1.4740607]
[1672555380437,0.97608634,16562.0,16561.0,1.4740607]
[1672555381394,0.97608634,16562.0,16561.0,1.47422262]
[1672555383129,0.97608634,16562.0,16561.0,1.47394542]
[1672555384560,0.97608634,16562.0,16561.0,1.474575]
[1672555385742,0.97608634,16562.0,16561.0,1.47394542]
[1672555386011,0.97608634,16562.0,16561.0,1.47850973]
[1672555387120,0.97608634,16562.0,16561.0,1.47940266]
[1672555387366,0.97608634,16562.0,16561.0,1.47850973]
[1672555388351,0.97608634,16562.0,16561.0,0.94217494]
[1672555388618,1.40185515,16562.0,16561.0,0.94128201]
[1672555389587,1.40185515,16562.0,16561.0,0.94217494]
[1672555393243,1.40185515,16562.0,16561.0,0.94128201]
[1672555393488,1.40185515,16562.0,16561.0,0.94157147]
[1672555393980,1.40185515,16562.0,16561.0,0.94128201]
[1672555394511,1.40185515,16562.0,16561.0,0.94157147]
[1672555395912,0.97608634,16562.0,16561.0,0.94157147]
[1672555396692,0.97608634,16562.0,16561.0,0.94128201]
[1672555397429,0.97608634,16562.0,16561.0,0.94186977]
[1672555397895,0.97608634,16562.0,16561.0,0.94128201]
[1672555399379,0.97608634,16562.0,16561.0,0.94186977]
[1672555401646,0.97608634,16562.0,16561.0,0.24186977]
[1672555401903,0.97608634,16562.0,16561.0,0.24128201]
[1672555402634,0.97608634,16562.0,16561.0,0.94128201]
[1672555403094,0.97608634,16562.0,16561.0,0.94158637]
[1672555403331,0.97608634,16562.0,16561.0,0.94128201]
[1672555404581,0.97608634,16562.0,16561.0,0.94118332]
[1672555406477,0.97608634,16562.0,16561.0,0.94204606]
[1672555406703,0.97608634,16562.0,16561.0,0.94118332]
[1672555407633,0.97608634,16562.0,16561.0,0.94204606]
[1672555408583,0.97608634,16562.0,16561.0,0.94118332]
[1672555408829,0.97608634,16562.0,16561.0,0.24204606]
[1672555409330,0.97608634,16562.0,16561.0,0.24118332]
[1672555409573,0.97608634,16562.0,16561.0,0.94118332]
[1672555409800,0.97608634,16562.0,16561.0,0.94204606]
[1672555411506,0.97608634,16562.0,16561.0,0.94118332]
[1672555415099,0.97608634,16562.0,16561.0,0.94204606]
[1672555415582,0.97608634,16562.0,16561.0,0.24204606]
[1672555416078,0.97608634,16562.0,16561.0,0.24118332]
[1672555416334,0.97608634,16562.0,16561.0,0.24204606]
[1672555416585,0.97608634,16562.0,16561.0,0.94204606]
[1672555416829,0.97608634,16562.0,16561.0,0.94118332]
[1672555418769,0.97608634,16562.0,16561.0,0.94204606]
[1672555420027,0.97608634,16562.0,16561.0,0.94118332]
[1672555420263,0.97108634,16562.0,16561.0,0.94118332]
[1672555421285,0.97108634,16562.0,16561.0,0.94204606]
[1672555422684,0.97108634,16562.0,16561.0,0.24204606]
[1672555423153,0.97108634,16562.0,16561.0,0.83795326]
[1672555423387,0.97108634,16562.0,16561.0,1.83985326]
[1672555423621,0.97108634,16562.0,16561.0,2.45952426]
[1672555424091,0.97108634,16562.0,16561.0,1.83985326]
[1672555424319,0.97108634,16562.0,16561.0,1.53795326]
[1672555425335,0.97108634,16562.0,16561.0,1.83795326]
[1672555425607,0.97108634,16562.0,16561.0,2.45762426]
[1672555426070,0.97108634,16562.0,16561.0,1.83795326]
[1672555427078,0.97108634,16562.0,16561.0,2.45762426]
[1672555427326,0.97108634,16562.0,16561.0,1.83709052]
[1672555427569,0.97108634,16562.0,16561.0,2.45676152]
[1672555428548,0.97108634,16562.0,16561.0,1.83709052]
[1672555429579,0.97108634,16562.0,16561.0,1.75676152]
[1672555429843,0.97108634,16562.0,16561.0,1.13709052]
[1672555430331,0.97108634,16562.0,16561.0,0.83709052]
[1672555430588,0.97108634,16562.0,16561.0,1.53709052]
[1672555430837,0.97108634,16562.0,16561.0,2.15676152]
[1672555431093,0.97108634,16562.0,16561.0,2.15763519]
[1672555431336,0.97108634,16562.0,16561.0,1.53796419]
[1672555431822,0.97108634,16562.0,16561.0,2.15763519]
[1672555435154,0.97108634,16562.0,16561.0,1.53796419]
[1672555435896,0.97108634,16562.0,16561.0,2.15763519]
[1672555436401,1.58314528,16562.0,16561.0,2.15763519]
[1672555436641,1.58314528,16562.0,16561.0,1.45763519]
[1672555437102,1.58314528,16562.0,16561.0,0.83796419]
[1672555437591,1.58314528,16562.0,16561.0,1.53796419]
[1672555437836,1.58314528,16562.0,16561.0,2.15763519]
[1672555439284,1.58314528,16562.0,16561.0,1.53796419]
[1672555440099,1.58314528,16562.0,16561.0,2.15763519]
[1672555440853,1.58314528,16562.0,16561.0,2.45763519]
[1672555442129,1.58314528,16562.0,16561.0,2.75754755]
[1672555445599,1.58314528,16562.0,16561.0,1.83700288]
[1672555448183,1.58307319,16562.0,16561.0,2.13700288]
[1672555449173,1.58307319,16562.0,16561.0,2.13787655]
[1672555450177,1.58307319,16562.0,16561.0,2.75754755]
[1672555453164,1.58307319,16562.0,16561.0,2.45754755]
[1672555453423,1.58307319,16562.0,16561.0,2.75754755]
[1672555454349,1.58307319,16562.0,16561.0,2.45754755]
[1672555454837,1.58307319,16562.0,16561.0,1.53787655]
[1672555456889,1.58307319,16562.0,16561.0,0.83787655]
[1672555457375,1.58307319,16562.0,16561.0,1.13787655]
[1672555457864,1.58307319,16562.0,16561.0,1.83787655]
[1672555458123,1.58307319,16562.0,16561.0,2.75754755]
[1672555458373,1.58307319,16562.0,16561.0,2.45754755]
[1672555460354,1.58307319,16562.0,16561.0,2.15754755]
[1672555460602,1.58307319,16562.0,16561.0,2.45754755]
[1672555463759,1.58307319,16562.0,16561.0,1.75754755]
[1672555464769,1.58307319,16562.0,16561.0,2.45754755]
[1672555465779,1.58307319,16562.0,16561.0,2.75754755]
[1672555466025,1.58307319,16562.0,16561.0,2.45754755]
[1672555467005,1.58307319,16562.0,16561.0,2.45688377]
[1672555469477,1.58307319,16562.0,16561.0,2.15688377]
[1672555470209,1.58307319,16562.0,16561.0,2.15678387]
[1672555470958,1.58307319,16562.0,16561.0,1.45678387]
[1672555471425,1.58307319,16562.0,16561.0,0.83711287]
[1672555471668,1.58307319,16562.0,16561.0,0.83690298]
[1672555471920,1.58307319,16562.0,16561.0,1.53690298]
[1672555472169,1.58307319,16562.0,16561.0,2.15657398]
[1672555473179,1.58307319,16562.0,16561.0,2.15680541]
[1672555473677,1.58307319,16562.0,16561.0,2.15657398]
[1672555473890,1.58314432,16562.0,16561.0,2.15657398]
[1672555474424,1.58314432,16562.0,16561.0,2.15680541]
[1672555476647,1.58314432,16562.0,16561.0,1.53713441]
[1672555477148,1.58314432,16562.0,16561.0,2.15680541]
[1672555478398,1.58314432,16562.0,16561.0,1.53713441]
[1672555479140,1.58314432,16562.0,16561.0,2.15680541]
[1672555479396,1.58314432,16562.0,16561.0,1.45680541]
[1672555480145,1.58314432,16562.0,16561.0,0.83713441]
[1672555480392,1.58314432,16562.0,16561.0,1.53713441]
[1672555480640,1.58314432,16562.0,16561.0,2.15680541]
[1672555481371,1.58314432,16562.0,16561.0,1.53713441]
[1672555482127,1.58314432,16562.0,16561.0,2.15680541]
[1672555483152,1.58314432,16562.0,16561.0,1.53690298]
[1672555483641,1.58322045,16562.0,16561.0,1.53690298]
[1672555484132,0.97101425,16562.0,16561.0,1.53690298]
[1672555484387,1.58322138,16562.0,16561.0,2.15657398]
[1672555484919,0.97101425,16562.0,16561.0,1.53243894]
[1672555485418,1.58323464,16562.0,16561.0,1.53243894]
[1672555485679,0.97101425,16562.0,16561.0,1.53243894]
[1672555486440,0.97101425,16562.0,16561.0,0.83243894]
[1672555486681,0.97101425,16562.0,16561.0,0.83267037]
[1672555487366,0.97101425,16562.0,16561.0,1.53267037]
[1672555489993,1.58322512,16562.0,16561.0,1.53267037]
[1672555490241,0.97101425,16562.0,16561.0,1.53267037]
[1672555491243,0.97101425,16562.0,16561.0,1.53243894]
[1672555491483,1.5832356,16562.0,16561.0,1.53243894]
[1672555493444,1.5832356,16562.0,16561.0,0.83243894]
[1672555494487,1.5832356,16562.0,16561.0,1.53243894]
[1672555494978,1.5832356,16562.0,16561.0,1.53267037]
[1672555495225,1.5832356,16562.0,16561.0,1.53256311]
[1672555497445,1.5832356,16562.0,16561.0,2.15223411]
[1672555498473,1.5832356,16562.0,16561.0,1.53256311]
[1672555498726,0.97101425,16562.0,16561.0,1.53256311]
[1672555500511,0.97101425,16562.0,16561.0,0.83256311]
[1672555501495,0.97101425,16562.0,16561.0,1.53256311]
[1672555501755,0.97101425,16562.0,16561.0,1.53233168]
[1672555502005,0.97101425,16562.0,16561.0,1.55060263]
[1672555505310,0.97101425,16562.0,16561.0,1.55103348]
[1672555506562,1.58319882,16562.0,16561.0,1.55103348]
[1672555506850,0.97101425,16562.0,16561.0,1.55103348]
[1672555508104,1.58320531,16562.0,16561.0,1.55103348]
[1672555509109,1.58320531,16562.0,16561.0,1.85103348]
[1672555509632,1.58320531,16562.0,16561.0,1.55103348]
[1672555509873,1.58320531,16562.0,16561.0,1.85103348]
[1672555510111,1.58320531,16562.0,16561.0,1.55103348]
[1672555510357,1.58320531,16562.0,16561.0,1.85103348]
[1672555510586,1.58320531,16562.0,16561.0,1.55103348]
[1672555511090,1.58320531,16562.0,16561.0,1.53233168]
[1672555511842,1.58319817,16562.0,16561.0,1.53233168]
[1672555512630,1.58319817,16562.0,16561.0,1.83233168]
[1672555513137,1.58319817,16562.0,16561.0,1.13233168]
[1672555514587,1.58319817,16562.0,16561.0,1.83233168]
[1672555515901,1.58319817,16562.0,16561.0,1.53233168]
[1672555516580,0.97101425,16562.0,16561.0,1.53233168]
[1672555518035,0.97101425,16562.0,16561.0,1.53225457]
[1672555520544,0.97101425,16562.0,16561.0,0.83225457]
[1672555521042,0.97101425,16562.0,16561.0,1.53225457]
[1672555524760,0.97101425,16562.0,16561.0,1.53287565]
[1672555527004,0.97101425,16562.0,16561.0,0.83287565]
[1672555528024,0.97101425,16562.0,16561.0,1.53287565]
[1672555531806,0.97101425,16562.0,16561.0,1.53225457]
[1672555535550,0.97101425,16562.0,16561.0,1.53287565]
[1672555538048,1.58316151,16562.0,16561.0,1.53287565]
[1672555538294,0.97101425,16562.0,16561.0,1.53287565]
[1672555541725,0.97101425,16562.0,16561.0,1.53276003]
[1672555544785,0.97101425,16562.0,16561.0,0.83276003]
[1672555545027,0.97101425,16562.0,16561.0,0.83213895]
[1672555545756,0.97101425,16562.0,16561.0,1.53213895]
[1672555548859,0.97101425,16562.0,16561.0,1.53276003]
[1672555550351,0.97101425,16562.0,16561.0,1.53213895]
[1672555551820,0.97101425,16562.0,16561.0,0.83213895]
[1672555552327,1.583203,16562.0,16561.0,0.83276003]
[1672555552817,1.583203,16562.0,16561.0,1.83276003]
[1672555553091,1.583203,16562.0,16561.0,1.53276003]
[1672555553338,1.583203,16562.0,16561.0,1.83276003]
[1672555554125,1.583203,16562.0,16561.0,2.45243103]
[1672555556640,1.583203,16562.0,16561.0,2.15243103]
[1672555556881,1.583203,16562.0,16561.0,1.53276003]
[1672555557132,1.583203,16562.0,16561.0,1.83276003]
[1672555557613,1.583203,16562.0,16561.0,2.45243103]
[1672555558359,1.583203,16562.0,16561.0,2.75434103]
[1672555559025,1.583203,16562.0,16561.0,1.99267003]
[1672555559309,1.583203,16562.0,16561.0,2.13367003]